[Event "Czech Championship Women 2022"]
[Site "Jaromerice nad Rokytnou"]
[Date "2022.05.24"]
[Round "2.4"]
[White "Lhotska, Anna"]
[Black "Koubova, Anna Marie"]
[Result "1-0"]
[ECO "B13"]
[WhiteElo "2029"]
[BlackElo "2115"]
[Annotator "TA"]
[PlyCount "81"]
[EventDate "2022.05.24"]
[EventType "tourn"]
[EventCountry "CZE"]
[SourceTitle "playchess.com"]
[Source "ChessBase"]
[SourceQuality "1"]
[TimeControl "40/5400+30:1800+30"]

{[%evp 9,81,33,22,8,4,0,10,0,0,-18,0,0,37,35,34,28,36,22,22,33,33,3,79,74,154,87,141,152,311,314,259,214,641,387,1000,952,1070,750,1099,664,688,683,631,509,503,443,458,456,571,571,547,564,514,495,489,489,789,789,775,747,664,618,29986,29987,29983,29971,29976,29977,29977,29978,29977,29978,29978,29977]} 1. e4 {[%emt 0:00:03]} c6 {[%emt 0:00:28]} 2. d4 {[%emt 0:00:08]} d5 {[%emt 0:00:09]} 3. exd5 {[%emt 0:00:18]} cxd5 {[%emt 0:00:11]} 4. Bd3 {[%emt 0:00:18]} Nc6 {[%emt 0:00:42]} 5. c3 {[%emt 0:00:09]} Qc7 {[%emt 0:00:30]} 6. Be3 {[%emt 0:00:38] B13: Caro-Kann: Exchange Variation and Panov-Botvinnik Attack.} Nf6 {[%emt 0:11:07]} 7. h3 {[%emt 0:00:53]} e6 {[%emt 0:00:33]} 8. Nf3 {[%emt 0:00:27] The position is equal.} Bd6 {[%emt 0:05:23]} 9. Nbd2 {[%emt 0:00:40]} O-O {[%emt 0:00:43]} 10. O-O {[%emt 0:00:17]} Rb8 {[%emt 0:01:49] [#]} 11. Rc1 $146 {[%emt 0:00:53]} ({Predecessor:} 11. Qe2 Bd7 12. Bg5 Be7 13. Ne5 b5 14. Bf4 Bd6 15. Nxd7 Nxd7 16. Bxd6 Qxd6 17. Bxb5 {1-0 (50) Svane,F (2159)-Stork,O (1997) Willingen 2017}) 11... b5 {[%emt 0:03:15]} 12. b4 {[%emt 0:01:48]} Ne7 {[%emt 0:14:09]} 13. Bg5 {[%emt 0:14:16]} Nd7 {[%emt 0:01:57]} 14. Re1 {[%emt 0:01:29]} f6 {[%emt 0:13:21]} 15. Bh4 {[%emt 0:25:25]} e5 {[%emt 0:01:25]} (15... Nb6 $11) 16. dxe5 $1 $16 {[%emt 0:05:03] White is more active.} fxe5 {[%emt 0:08:02] [#]} (16... Nxe5 $142 17. Bc2 N5g6) 17. Qb3 {[%emt 0:19:36]} ({White should play} 17. Nd4 $1 {[%cal Rd4e6][%mdl 512]}) 17... Nf6 {[%emt 0:02:27]} ({Black should try} 17... Nb6) 18. Ne4 {[%emt 0:01:47]} Be6 $2 {[%emt 0:31:42] Loses the game.} (18... Bf5 $16) 19. Nxd6 $18 {[%emt 0:21:40]} Qxd6 {[%emt 0:00:07]} 20. Rxe5 {[%emt 0:00:59] Hoping for Rce1.} Nd7 $2 {[%emt 0:01:13]} (20... Ng6 21. Bxg6 hxg6) 21. Re2 {[%emt 0:00:48]} Nc6 $2 {[%emt 0:01:01]} (21... Rxf3 22. gxf3 Qf4) 22. Bg3 {[%emt 0:00:31]} Qe7 {[%emt 0:00:30]} 23. Bxb8 {[%emt 0:01:23][%cal Oc1e1] Rce1! is the strong threat.} Ncxb8 {[%emt 0:00:30]} 24. Nd4 {[%emt 0:00:40]} Qg5 {[%emt 0:00:18]} 25. Qc2 {[%emt 0:02:02]} Bxh3 {[%emt 0:00:08][%csl Gh3][%cal Rg5g2]} 26. f3 {[%emt 0:00:32]} Ne5 {[%emt 0:00:44]} 27. Rxe5 {[%emt 0:00:44]} Qxe5 {[%emt 0:00:06]} 28. gxh3 {[%emt 0:00:13]} Qe3+ {[%emt 0:01:22]} 29. Kh1 {[%emt 0:00:14]} Nc6 {[%emt 0:00:33]} 30. Bxh7+ {[%emt 0:01:00]} Kh8 {[%emt 0:00:13]} 31. Rf1 {[%emt 0:00:34]} ({Not} 31. Nxc6 Rxf3 32. Bf5 Rf2 $18) 31... Nxd4 {[%emt 0:00:43]} 32. cxd4 {[%emt 0:00:14]} Rxf3 {[%emt 0:00:33]} (32... Qxd4 $142 33. a3 Qc4) 33. Rxf3 {[%emt 0:00:29]} Qxf3+ {[%emt 0:00:04]} 34. Kh2 {[%emt 0:00:08]} Qf4+ {[%emt 0:00:28]} 35. Kg2 {[%emt 0:00:22] Threatens to win with Bg6.} Qxd4 {[%emt 0:01:03]} 36. Bg6 {[%emt 0:00:31][%cal Rc2c8] White mates.} Qc4 {[%emt 0:00:26]} 37. Qxc4 {[%emt 0:00:06]} bxc4 {[%emt 0:00:16]} 38. Kf3 {[%emt 0:00:13]} d4 {[%emt 0:00:16]} 39. Ke4 {[%emt 0:00:19]} d3 {[%emt 0:00:10]} 40. Kd4 {[%emt 0:00:11]} d2 {[%emt 0:00:14]} 41. Bc2 {[%emt 0:30:06] Weighted Error Value: White=0.46/Black=0.43} 1-0

[Event "Czech Championship Women 2022"]
[Site "Jaromerice nad Rokytnou"]
[Date "2022.05.24"]
[Round "2.5"]
[White "Sikorova, Olga"]
[Black "Novosadova, Kristyna"]
[Result "1-0"]
[ECO "A26"]
[WhiteElo "2173"]
[BlackElo "2147"]
[Annotator "TA"]
[PlyCount "65"]
[EventDate "2022.05.24"]
[EventType "tourn"]
[EventCountry "CZE"]
[SourceTitle "playchess.com"]
[Source "ChessBase"]
[SourceQuality "1"]
[TimeControl "40/5400+30:1800+30"]

{[%evp 17,65,10,30,-9,41,-1,43,46,42,33,152,61,69,53,34,56,134,47,57,55,154,146,200,198,183,193,174,80,86,85,81,72,77,75,118,102,622,605,1763,1734,1697,1671,1633,1395,29988,29976,29966,29968,6087,5751]} 1. c4 {[%emt 0:00:07]} f5 {[%emt 0:00:25]} 2. Nc3 {[%emt 0:00:21]} Nc6 {[%emt 0:00:14]} 3. g3 {[%emt 0:00:38]} g6 {[%emt 0:00:44]} 4. Bg2 {[%emt 0:00:09]} Bg7 {[%emt 0:00:08]} 5. d3 {[%emt 0:00:46]} Nf6 {[%emt 0:00:42]} 6. e4 {[%emt 0:00:15]} d6 {[%emt 0:00:29]} 7. Nge2 {[%emt 0:00:08]} O-O {[%emt 0:02:15]} 8. O-O {[%emt 0:00:43]} e5 {[%emt 0:00:26]} 9. Nd5 {[%emt 0:00:48]} Nh5 {[%emt 0:03:26][%cal Of5f4]} 10. Rb1 {[%emt 0:05:06] A26: English Opening vs King's Indian with ...Nc6 and d3.} Be6 {[%emt 0:06:13]} ({Black should try} 10... f4 $11 11. f3 Ne7) 11. b4 {[%emt 0:01:29][%cal Bb2b4,Bb4b5][%mdl 32]} Qd7 {[%emt 0:02:35]} 12. b5 {[%emt 0:04:36] White is slightly better.} Nd8 {[%emt 0:01:33][%cal Of5f4]} 13. exf5 {[%emt 0:11:53] [#]} gxf5 $146 {[%emt 0:09:24] [#]} (13... Bxf5 $14 14. Nec3 Nf6) ({Predecessor:} 13... Bxf5 14. Nec3 c6 15. bxc6 bxc6 16. Ne3 Be6 17. Ne4 Nf7 18. Ba3 Nf6 19. h4 Nxe4 20. dxe4 {½-½ (30) Flores,D (2599)-Roselli Mailhe,B (2423) Mar del Plata 2012}) 14. f4 {[%emt 0:03:02] White is more active.} (14. Nd4 $1 $16 {[%cal Rd4e6][%mdl 512]} exd4 15. Qxh5) 14... c6 $14 {[%emt 0:01:38]} 15. bxc6 {[%emt 0:06:37]} bxc6 {[%emt 0:00:17]} 16. Ne3 {[%emt 0:01:52]} Nf6 {[%emt 0:10:19] [#]} (16... Rc8 $14) 17. fxe5 {[%emt 0:08:54]} (17. d4 $1 $16 {[%cal Rd4d5]}) 17... dxe5 {[%emt 0:00:07]} 18. d4 {[%emt 0:01:07] Threatens to win with d5.} exd4 {[%emt 0:11:06]} (18... Ng4 $1 $14) 19. Nxd4 $16 {[%emt 0:05:31][%cal Re3f5]} Ng4 {[%emt 0:03:16]} (19... Ne4 $16 20. Bb2 (20. Ndxf5 Qxd1 21. Ne7+ Kh8 $14) 20... Rb8) 20. Nxe6 $18 {[%emt 0:02:25]} Qxe6 {[%emt 0:00:26]} 21. Nxg4 {[%emt 0:12:25]} fxg4 {[%emt 0:00:02]} 22. Rxf8+ {[%emt 0:02:23]} (22. Re1 $18 {is more deadly.} Be5 23. Bf4) 22... Bxf8 $16 {[%emt 0:00:21]} 23. Bf4 {[%emt 0:01:12]} Nf7 {[%emt 0:02:16]} 24. Qa4 {[%emt 0:08:04]} Bc5+ {[%emt 0:01:34]} 25. Kh1 {[%emt 0:01:39]} Rc8 {[%emt 0:03:46]} 26. Qa5 $36 {[%emt 0:02:58][%mdl 2048] Keeping Black busy.} Qxc4 {[%emt 0:12:35][%mdl 8192] Loses the game.} (26... Bd4 $16) 27. Rc1 $18 {[%emt 0:01:20]} Bb4 {[%emt 0:10:27] And now ...Qxc1+ would win.} 28. Qf5 {[%emt 0:00:55]} ({Not} 28. Rxc4 Bxa5 29. Bxc6 (29. Rxc6 Rxc6 30. Bxc6 h5 $14) 29... Kf8 $14) 28... Qa6 {[%emt 0:00:12]} 29. Qxg4+ {[%emt 0:00:22]} Kf8 {[%emt 0:02:08]} 30. Rf1 {[%emt 0:01:09]} c5 {[%emt 0:01:11]} 31. Bd6+ {[%emt 0:01:54]} Qxd6 {[%emt 0:00:09]} 32. Qxc8+ {[%emt 0:00:04]} Kg7 {[%emt 0:00:08]} 33. Qb7 {[%emt 0:00:51][%csl LRa7,LRf7] Weighted Error Value: White=0.23 (precise) /Black=1.16} 1-0

[Event "Czech Championship Women 2022"]
[Site "Jaromerice nad Rokytnou"]
[Date "2022.05.24"]
[Round "3.1"]
[White "Novosadova, Kristyna"]
[Black "Pilsova, Karolina"]
[Result "0-1"]
[ECO "C56"]
[WhiteElo "2147"]
[BlackElo "2229"]
[Annotator "TA"]
[PlyCount "72"]
[EventDate "2022.05.24"]
[EventType "tourn"]
[EventCountry "CZE"]
[SourceTitle "playchess.com"]
[Source "ChessBase"]
[SourceQuality "1"]
[TimeControl "40/5400+30:1800+30"]

{[%evp 17,72,-47,-36,-38,-45,-36,-43,-58,-19,-18,-31,-28,-18,-33,-12,-25,-27,-14,-14,-97,-95,-148,-141,-148,-153,-147,-83,-157,-150,-170,-159,-181,-173,-212,-221,-589,-576,-587,-587,-581,-577,-572,-580,-553,-529,-530,-497,-541,-529,-526,-506,-490,-477,-701,-701,-676,-675]} 1. e4 {[%emt 0:00:06]} e5 {[%emt 0:00:08]} 2. Nf3 {[%emt 0:00:06]} Nc6 {[%emt 0:00:05]} 3. Bc4 {[%emt 0:00:09]} Nf6 {[%emt 0:00:16][%cal Bg8f6,Bf6d7,Bd7b8][%mdl 32]} 4. d4 {[%emt 0:00:15]} exd4 {[%emt 0:00:23]} 5. e5 {[%emt 0:00:06]} d5 {[%emt 0:00:31]} 6. Bb5 {[%emt 0:00:07]} Nd7 {[%emt 0:00:42]} 7. O-O {[%emt 0:02:49]} Be7 {[%emt 0:01:22]} 8. e6 {[%emt 0:04:31]} fxe6 {[%emt 0:03:31]} 9. Bxc6 {[%emt 0:00:48]} bxc6 {[%emt 0:00:02]} 10. Nxd4 {[%emt 0:00:10] C56: Two Knights: 4 d4 exd4 5 0-0 Nxe4.} Nb8 {[%emt 0:01:20]} 11. Qh5+ {[%emt 0:08:34]} g6 {[%emt 0:02:04]} 12. Qh6 {[%emt 0:18:47] Black is slightly better.} c5 {[%emt 0:06:15]} (12... Bf8 $5 {[%cal Rf8h6]} 13. Qf4 Bd6 $17) 13. Nf3 {[%emt 0:01:50]} Nc6 {[%emt 0:02:49] [#]} 14. Re1 $146 {[%emt 0:02:34]} ({Predecessor:} 14. a3 Bf8 15. Qe3 Qd6 16. Re1 Bg7 17. Nbd2 O-O 18. Ng5 Nd4 19. Qd3 c4 20. Nxc4 dxc4 21. Qxc4 {0-1 (26) Hernandez,O (947)-Nospers,C (1281) LSS email 2011}) 14... Nd4 {[%emt 0:10:21]} 15. Nxd4 {[%emt 0:03:10]} cxd4 {[%emt 0:00:14]} 16. Bf4 {[%emt 0:00:33]} Bf8 $36 {[%emt 0:09:48][%mdl 2048] White is under pressure.} 17. Qh3 {[%emt 0:00:31] [#] Threatens to win with Be5.} Bd6 {[%emt 0:00:29]} 18. Be5 {[%emt 0:05:38]} (18. Bxd6 $11 cxd6 19. Qf3 (19. Rxe6+ $2 Kf7 $19)) 18... O-O $17 {[%emt 0:14:28] Hoping for ...Bxe5.} 19. Nd2 {[%emt 0:10:09]} (19. Qg3 $142) 19... Qg5 {[%emt 0:03:35]} 20. Bxd6 {[%emt 0:04:24]} cxd6 {[%emt 0:00:24]} 21. Rad1 {[%emt 0:04:16]} Qf4 {[%emt 0:04:57]} (21... e5 $142 22. Qa3 Qf6) 22. Qg3 {[%emt 0:01:35]} ({White should play} 22. Qa3) 22... e5 {[%emt 0:03:36]} 23. Qxf4 {[%emt 0:05:05]} Rxf4 {[%emt 0:00:07]} 24. g3 {[%emt 0:00:21]} Rf7 {[%emt 0:00:52][%cal Bf4f7,Bf7c7,Bc7c2,Bc2b2][%mdl 32] White must now prevent ...Rb8.} 25. f4 {[%emt 0:01:47]} Bg4 {[%emt 0:04:53]} ({Stronger than} 25... exf4 26. Re8+ Kg7 27. Nb3 $15) 26. fxe5 $2 {[%emt 0:04:45]} (26. Rb1 {is tougher.}) 26... Bxd1 $19 {[%emt 0:11:12] Black is clearly winning.} 27. e6 {[%emt 0:00:07] [#]} Rc7 {[%emt 0:00:14]} 28. Rxd1 {[%emt 0:00:14]} Rxc2 {[%emt 0:00:15][%mdl 4096] Endgame KRR-KRN} 29. Nf3 {[%emt 0:01:26]} Rxb2 {[%emt 0:01:40]} 30. Nxd4 {[%emt 0:03:16]} Re8 {[%emt 0:01:39]} 31. a3 {[%emt 0:01:44]} Kg7 {[%emt 0:03:17]} 32. g4 {[%emt 0:03:16]} Kf6 {[%emt 0:01:37]} 33. Re1 {[%emt 0:00:11]} a6 {[%emt 0:01:10]} 34. h4 {[%emt 0:01:01]} h6 {[%emt 0:01:07] Against g5+} 35. a4 {[%emt 0:01:48]} (35. Nc6 $142) 35... Ra2 {[%emt 0:00:33]} 36. a5 {[%emt 0:00:13]} Ra4 {[%emt 0:00:34] Weighted Error Value: White=0.38/Black=0.07 (flawless)} 0-1

[Event "Czech Championship Women 2022"]
[Site "Jaromerice nad Rokytnou"]
[Date "2022.05.24"]
[Round "3.2"]
[White "Koubova, Anna Marie"]
[Black "Sikorova, Olga"]
[Result "1-0"]
[ECO "B41"]
[WhiteElo "2115"]
[BlackElo "2173"]
[Annotator "TA"]
[PlyCount "79"]
[EventDate "2022.05.24"]
[EventType "tourn"]
[EventCountry "CZE"]
[SourceTitle "playchess.com"]
[Source "ChessBase"]
[SourceQuality "1"]
[TimeControl "40/5400+30:1800+30"]

{[%evp 14,79,52,37,33,4,22,-12,17,17,24,21,79,71,65,21,4,0,0,-27,74,-19,31,-45,-53,-40,10,9,166,-61,279,223,562,557,685,672,658,638,593,591,1093,832,1220,1302,1260,883,859,866,904,900,895,888,885,864,1021,1014,1146,1118,1038,917,29971,29972,29967,29961,5365,5365,5365,5285]} 1. d4 {[%emt 0:00:07]} Nf6 {[%emt 0:00:10]} 2. c4 {[%emt 0:00:10]} e6 {[%emt 0:00:13]} 3. Nf3 {[%emt 0:00:31]} c5 {[%emt 0:02:00]} 4. Nc3 {[%emt 0:03:18]} cxd4 {[%emt 0:00:34]} 5. Nxd4 {[%emt 0:00:21]} a6 {[%emt 0:00:08]} 6. e4 {[%emt 0:14:54]} Qc7 {[%emt 0:00:18]} 7. Be2 {[%emt 0:01:37]} b6 {[%emt 0:00:53]} 8. O-O {[%emt 0:03:56][%cal Oe4e5]} Bb7 {[%emt 0:02:31] B41: Sicilian: Kan Variation: 5 c4.} 9. Bd3 {[%emt 0:05:38]} Nc6 {[%emt 0:05:03] [#]} (9... Bd6 $5 {[%cal Rd6h2]}) 10. Nf3 $146 {[%emt 0:05:53]} ({Predecessor:} 10. Nxc6 Bxc6 11. Qe2 Bd6 12. Kh1 e5 13. Nd5 Bxd5 14. cxd5 b5 15. a4 bxa4 16. Rxa4 {½-½ (33) Kundrik,P (2233)-Spacek,O (2218) Slovakia 2019}) 10... Bd6 {[%emt 0:11:58] The position is equal.} 11. h3 {[%emt 0:03:50]} Ne5 {[%emt 0:06:34]} 12. Be3 {[%emt 0:03:06]} h5 {[%emt 0:11:20]} (12... O-O $11) 13. Nxe5 $16 {[%emt 0:07:49]} Bxe5 {[%emt 0:00:03]} 14. Na4 {[%emt 0:01:20] Black must now prevent f4.} Nxe4 {[%emt 0:15:19]} 15. Nxb6 {[%emt 0:01:58]} Rb8 {[%emt 0:01:20]} 16. Rc1 {[%emt 0:13:41][%cal Ob6d5]} Nf6 {[%emt 0:09:34] Against Nd5} (16... Bxb2 $11 {remains equal.} 17. Rb1 Be5) 17. Be2 {[%emt 0:06:36]} (17. Qe2 $1 $16) 17... g5 {[%emt 0:05:57] Against f4} (17... Bxb2 $11 18. Rb1 Ba3) 18. b4 {[%emt 0:02:21]} (18. c5 $1 $14) 18... g4 $15 {[%emt 0:05:54]} 19. h4 {[%emt 0:00:14] [#]} ({Don't blunder} 19. f3 $2 gxh3 20. Rf2 Ng4 $1 {[%mdl 512]} 21. Qxd7+ Qxd7 $19) 19... Ne4 {[%emt 0:00:24]} (19... Bxg2 $1 $15 20. Kxg2 (20. Nd5 exd5) 20... Rxb6 21. Bxb6 Qxb6) 20. c5 $11 {[%emt 0:03:01]} Bc6 $2 {[%emt 0:08:24]} (20... Qc6 $11 {and Black has nothing to worry.} 21. f3 Ng3) 21. Qe1 $2 {[%emt 0:04:54]} ({White should try} 21. Bxa6 $18 {And now b5 would win.} Bh2+ 22. Kh1) 21... Bf6 $2 {[%emt 0:03:33][%mdl 8192] White stays focused until the end.} (21... g3 $1 $15 {keeps the upper hand.} 22. Bf3 (22. Bxa6 $2 gxf2+ 23. Rxf2 Bh2+ 24. Kh1 Rg8 $19) (22. f3 $2 Qd8 $19) 22... gxf2+ 23. Bxf2 f5) 22. Bd3 {[%emt 0:03:04]} Rxb6 $2 {[%emt 0:07:20]} (22... Bxh4 23. Bxe4 Bxe4) 23. cxb6 $18 {[%emt 0:01:29]} Qb7 {[%emt 0:00:27]} 24. Bxe4 {[%emt 0:08:48]} Bxe4 {[%emt 0:00:01]} 25. Rc7 {[%emt 0:00:08]} Qd5 {[%emt 0:02:24]} 26. Qd1 {[%emt 0:01:13]} Bd3 {[%emt 0:00:14]} 27. Re1 {[%emt 0:01:02]} O-O {[%emt 0:00:30]} 28. Rc5 {[%emt 0:00:31]} Qe4 {[%emt 0:00:46]} 29. Bh6 {[%emt 0:00:37]} Qxb4 {[%emt 0:00:07]} 30. Bxf8 {[%emt 0:00:07]} Kxf8 {[%emt 0:00:05]} 31. b7 {[%emt 0:01:03] Hoping for Rc8+.} ({Less strong is} 31. Qxd3 Qxe1+ 32. Qf1 Qb4 $16) 31... Kg7 {[%emt 0:00:36]} 32. b8=Q {[%emt 0:00:29]} Qxb8 {[%emt 0:00:45]} 33. Qxd3 {[%emt 0:00:25]} g3 {[%emt 0:00:06]} 34. fxg3 {[%emt 0:01:43]} Qb6 {[%emt 0:00:20]} 35. Qe3 {[%emt 0:00:27][%cal Oc5g5] Intending Rg5+! and mate.} d5 {[%emt 0:00:13]} 36. Kh1 {[%emt 0:00:40] aiming for Rf1.} d4 {[%emt 0:00:50] [#]} 37. Rg5+ $1 {[%emt 0:00:33]} Kf8 {[%emt 0:01:12]} 38. Qa3+ {[%emt 0:00:51]} Be7 {[%emt 0:00:02] [#]} 39. Rg8+ $3 {[%emt 0:00:24]} Kxg8 {[%emt 0:00:01]} 40. Qxe7 {[%emt 0:00:08] Weighted Error Value: White=0.43/Black=0.99} 1-0

[Event "Czech Championship Women 2022"]
[Site "Jaromerice nad Rokytnou"]
[Date "2022.05.24"]
[Round "3.3"]
[White "Trasakova, Adela"]
[Black "Lhotska, Anna"]
[Result "0-1"]
[ECO "D02"]
[WhiteElo "1842"]
[BlackElo "2029"]
[Annotator "TA"]
[PlyCount "72"]
[EventDate "2022.05.24"]
[EventType "tourn"]
[EventCountry "CZE"]
[SourceTitle "playchess.com"]
[Source "ChessBase"]
[SourceQuality "1"]
[TimeControl "40/5400+30:1800+30"]

{[%evp 11,71,29,30,31,15,16,21,28,21,0,8,6,5,16,12,6,13,0,0,0,0,0,0,0,0,-116,-97,-157,-161,-171,-160,-342,-342,-342,-335,-345,-310,-466,-470,-752,-719,-1130,-1127,-1150,-1127,-1101,-1088,-1002,-985,-1099,-1093,-29989,-29990,-29990,-29990,-29990,-29991,-29994,-29995,-29998,-29999,-29999]} 1. d4 {[%emt 0:00:02]} d5 {[%emt 0:00:06]} 2. Nf3 {[%emt 0:00:03]} Nf6 {[%emt 0:00:21]} 3. g3 {[%emt 0:00:02]} e6 {[%emt 0:00:09]} 4. Bg2 {[%emt 0:00:02]} b5 {[%emt 0:00:06]} 5. O-O {[%emt 0:00:11]} Nbd7 {[%emt 0:00:13]} 6. a4 {[%emt 0:01:39]} b4 {[%emt 0:00:16]} 7. c4 {[%emt 0:00:57] D02: 1 d4 d5 2 Nf3 sidelines, including 2...Nf6 3 g3 and 2...Nf6 3 Bf4.} bxc3 {[%emt 0:00:34]} 8. Nxc3 {[%emt 0:01:34] 8.Nxc3 scores better than 8.bxc3.} Be7 {[%emt 0:01:42]} 9. Bf4 {[%emt 0:03:09] The position is equal.} c6 {[%emt 0:00:28] Against Nb5} 10. a5 {[%emt 0:04:30]} Ba6 {[%emt 0:02:02]} 11. Qa4 {[%emt 0:04:33]} Rc8 {[%emt 0:02:11]} 12. Rfc1 {[%emt 0:05:00]} O-O {[%emt 0:01:24]} 13. b4 {[%emt 0:02:54] [#]} h6 $146 {[%emt 0:06:26]} ({Predecessor:} 13... Ne4 14. Nxe4 dxe4 15. Ne5 Nxe5 16. dxe5 Bb5 17. Qb3 Bxe2 18. Bxe4 Bb5 19. Be3 Rc7 {½-½ (39) Fridman,D (2601)-Delorme,A (2480) Tornelo INT 2021}) 14. b5 {[%emt 0:06:15]} cxb5 {[%emt 0:02:27]} 15. Nxb5 {[%emt 0:00:22]} Rxc1+ {[%emt 0:01:09]} 16. Rxc1 {[%emt 0:00:44]} g5 {[%emt 0:01:43]} 17. Bc7 {[%emt 0:10:13]} Qa8 {[%emt 0:01:09]} 18. Be5 {[%emt 0:08:49]} (18. Ne5 $11) 18... Rc8 $17 {[%emt 0:08:04] White is on the road to losing.} 19. Rc7 {[%emt 0:04:28]} (19. Rb1 $142) 19... Bd8 $1 {[%emt 0:11:27]} 20. Rxc8 {[%emt 0:09:40]} ({Much worse is} 20. Rxa7 Qc6 21. Nc3 (21. Bxf6 $2 Bxb5 22. Qb4 Bxf6 $19) 21... Qxc3) 20... Qxc8 {[%emt 0:00:34]} 21. Bf1 $2 {[%emt 0:02:45] [#]} (21. Bxf6 $17 {was the only defense.} Nxf6 22. Ne5) 21... Qc6 $1 $19 {[%emt 0:14:30]} 22. e3 {[%emt 0:00:51] [#]} Ne4 {[%emt 0:02:02] Hoping for ...Qc1.} ({Stronger than} 22... Qc1 23. Bxf6 Nxf6 24. Ne5 $17) 23. g4 {[%emt 0:02:42]} Qc1 {[%emt 0:06:45]} 24. Bg3 {[%emt 0:02:48]} (24. Qb3 $142) 24... Qb1 {[%emt 0:10:05][%cal Oh6h5] ...h5! is the strong threat.} 25. h3 {[%emt 0:03:25]} (25. Kg2 $142 Nc3 26. Nd2 Qxf1+ 27. Nxf1 Nxa4 28. Nxa7) 25... Ndf6 {[%emt 0:02:07][%cal Bd7f6,Bf6e4,Be4d6,Bd6e4,Be4g3][%mdl 32]} 26. Kg2 {[%emt 0:09:16]} Nxg3 {[%emt 0:05:30]} 27. fxg3 {[%emt 0:00:02]} Qb2+ {[%emt 0:06:44]} 28. Kh1 {[%emt 0:00:02]} Qf2 {[%emt 0:04:28]} 29. Bg2 {[%emt 0:01:17]} Ne4 {[%emt 0:01:51]} 30. Nd6 {[%emt 0:06:59]} Nxd6 {[%emt 0:04:28]} 31. Qc6 {[%emt 0:00:00]} Bf1 {[%emt 0:00:23] Black mates.} 32. Bxf1 {[%emt 0:00:00]} Qxf1+ {[%emt 0:00:18]} 33. Ng1 {[%emt 0:00:00]} Ne4 {[%emt 0:00:26]} 34. Qe8+ {[%emt 0:00:00]} Kg7 {[%emt 0:00:11]} 35. Qxd8 {[%emt 0:00:00]} Nxg3+ {[%emt 0:00:08]} 36. Kh2 {[%emt 0:00:00]} Qf2# {[%emt 0:00:10] Weighted Error Value: White=0.70/Black=0.03 (flawless)} 0-1

[Event "Czech Championship Women 2022"]
[Site "Jaromerice nad Rokytnou"]
[Date "2022.05.24"]
[Round "3.4"]
[White "Richterova, Natasa"]
[Black "Petrova, Kristyna"]
[Result "1/2-1/2"]
[ECO "A13"]
[WhiteElo "2181"]
[BlackElo "2264"]
[Annotator "TA"]
[PlyCount "75"]
[EventDate "2022.05.24"]
[EventType "tourn"]
[EventCountry "CZE"]
[SourceTitle "playchess.com"]
[Source "ChessBase"]
[SourceQuality "1"]
[TimeControl "40/5400+30:1800+30"]

{[%evp 18,75,45,16,11,12,14,11,14,5,3,7,8,0,-4,-13,0,0,0,0,0,0,0,0,0,0,0,0,57,51,58,58,91,66,66,42,42,42,34,35,42,42,42,31,31,31,42,18,24,15,29,8,8,0,0,0,0,0,0,0]} 1. Nf3 {[%emt 0:00:54]} d5 {[%emt 0:00:15]} 2. c4 {[%emt 0:00:12]} e6 {[%emt 0:00:59]} 3. e3 {[%emt 0:01:32]} Nf6 {[%emt 0:00:34]} 4. Nc3 {[%emt 0:00:11]} Be7 {[%emt 0:06:41]} 5. b3 {[%emt 0:00:27]} O-O {[%emt 0:02:18]} 6. Bb2 {[%emt 0:00:16]} c5 {[%emt 0:03:18]} 7. cxd5 {[%emt 0:00:33]} exd5 {[%emt 0:08:35]} 8. d4 {[%emt 0:00:14]} Nc6 {[%emt 0:00:05]} 9. Be2 {[%emt 0:00:21]} Bg4 {[%emt 0:07:38]} 10. O-O {[%emt 0:05:16]} Bxf3 {[%emt 0:07:04] A13: English Opening: 1...e6.} 11. Bxf3 {[%emt 0:04:49] Black must now prevent dxc5.} cxd4 {[%emt 0:00:07]} 12. exd4 {[%emt 0:00:08]} Re8 {[%emt 0:01:39]} 13. Re1 {[%emt 0:00:18]} Qd7 {[%emt 0:02:00] [#]} 14. a3 $146 {[%emt 0:06:35]} ({Predecessor:} 14. Re3 Bd6 15. g3 Bc7 16. Kg2 Rad8 17. Qd3 h5 18. Rae1 Rxe3 19. Rxe3 h4 20. Na4 {0-1 (37) Roberson,P (2420)-Hong,A (2390) Chess.com INT 2019}) 14... Qf5 {[%emt 0:06:28]} 15. b4 {[%emt 0:09:43]} Bd6 {[%emt 0:03:46] [#] aiming for ...Rxe1+.} 16. Nb5 {[%emt 0:05:12]} Rxe1+ {[%emt 0:05:38]} 17. Qxe1 {[%emt 0:00:01]} Re8 {[%emt 0:00:31]} 18. Qb1 {[%emt 0:02:42]} Qxb1+ {[%emt 0:08:31]} 19. Rxb1 {[%emt 0:00:11]} Bb8 {[%emt 0:00:03]} 20. g3 {[%emt 0:13:05]} a6 {[%emt 0:05:40]} 21. Nc3 {[%emt 0:00:01]} Nxd4 {[%emt 0:00:41]} 22. Bg2 {[%emt 0:06:24]} Nc6 {[%emt 0:17:12]} (22... Ba7 $1 $11) 23. Nxd5 $14 {[%emt 0:01:25]} Nxd5 {[%emt 0:00:31]} 24. Bxd5 {[%emt 0:00:07] This bishop pair is nice.} h5 {[%emt 0:02:32]} 25. h4 {[%emt 0:02:18]} Ba7 {[%emt 0:01:22]} 26. Kf1 {[%emt 0:03:15]} Rd8 {[%emt 0:01:21]} 27. Rd1 {[%emt 0:00:23]} Kf8 {[%emt 0:00:23]} 28. Bc3 {[%emt 0:06:12]} g6 {[%emt 0:02:09]} 29. Rd2 {[%emt 0:01:44]} Rd7 {[%emt 0:00:45]} 30. Ke2 {[%emt 0:01:18]} Ke8 {[%emt 0:02:10]} 31. a4 {[%emt 0:03:18][%cal Ba3a4,Ba4b5][%mdl 32]} Kf8 {[%emt 0:02:09]} 32. b5 {[%emt 0:00:18]} axb5 {[%emt 0:00:52]} 33. axb5 {[%emt 0:00:01]} Nd8 {[%emt 0:01:36]} 34. Ba5 {[%emt 0:00:52]} Bc5 $1 {[%emt 0:00:35] The position is equal.} 35. f3 {[%emt 0:03:15]} b6 {[%emt 0:00:37]} 36. Bc3 {[%emt 0:00:29]} Ke7 {[%emt 0:00:11]} 37. g4 {[%emt 0:02:42]} Ne6 {[%emt 0:00:47]} 38. Kf1 {[%emt 0:06:42] Weighted Error Value: White=0.08 (flawless) /Black=0.05 (flawless)} 1/2-1/2